bitfinex-derivatives/quotes_ETHF0:USTF0_20260203
["timestamp","ask_amount","ask_price","bid_price","bid_amount"]
[1770135749980,2.43932372,2264.5,2263.3,2.59]
[1770135750186,2.43932372,2264.3,2263.1,2.59]
[1770135751286,2.43932372,2264.3,2263.2,2.00477154]
[1770135752087,2.43932372,2264.3,2263.3,2.59]
[1770135752485,2.43932372,2264.1,2262.9,4.417]
[1770135752684,2.43932372,2264.1,2263.0,2.59]
[1770135752985,2.43932372,2263.9,2262.3,2.00940849]
[1770135753184,2.43932372,2263.9,2262.4,9.01640849]
[1770135753585,2.43932372,2263.9,2262.4,2.00940849]
[1770135753783,2.43932372,2263.7,2261.6,0.22129]
[1770135753981,2.43932372,2263.5,2261.9,4.417]
[1770135754190,2.43932372,2263.5,2262.0,2.0256084]
[1770135754889,2.43932372,2263.5,2261.9,4.63825]
[1770135755189,2.43932372,2263.5,2261.7,2.0256084]
[1770135755389,2.43932372,2263.3,2261.8,2.591]
[1770135756491,2.43932372,2263.3,2261.9,2.02170588]
[1770135757083,2.43932372,2263.3,2261.6,2.02170588]
[1770135757284,2.43932372,2263.3,2261.3,2.02170588]
[1770135757485,2.43932372,2263.1,2261.4,2.592]
[1770135757690,2.44485556,2263.1,2261.4,4.61370588]
[1770135757889,2.44485556,2263.1,2261.4,2.592]
[1770135758586,2.44485556,2263.1,2261.3,6.43815773]
[1770135758587,2.44485556,2263.1,2261.2,2.81333]
[1770135758790,2.44485556,2263.1,2261.3,2.01915773]
[1770135759294,2.44485556,2263.1,2261.6,2.01915773]
[1770135760694,2.44485556,2263.1,2261.8,1.99689689]
[1770135760995,2.44485556,2263.1,2261.9,2.21814689]
[1770135761192,0.00553184,2263.1,2262.1,1.99689689]
[1770135761492,2.43932372,2264.0,2262.8,1.99689689]
[1770135761686,2.43932372,2264.3,2263.2,2.21802689]
[1770135762493,2.44254952,2264.3,2263.2,2.22211877]
[1770135762894,0.0032258,2264.3,2263.2,2.22211877]
[1770135763094,0.0032258,2264.3,2263.4,2.21643155]
[1770135763296,2.43932372,2264.6,2263.5,2.21642155]
[1770135763496,2.43932372,2264.6,2263.5,0.2211]
[1770135763696,2.43932372,2264.6,2263.5,2.21642155]
[1770135764295,2.44292854,2264.6,2263.5,2.21642155]
[1770135764493,2.44292854,2264.6,2263.2,0.00409188]
[1770135764699,2.44292854,2264.6,2263.3,7.012]
[1770135764897,2.44292854,2264.6,2263.3,9.01587042]
[1770135765088,2.44292854,2264.6,2263.3,7.012]
[1770135765997,2.44292854,2264.6,2263.3,9.01001807]
[1770135766396,2.44292854,2264.6,2263.4,1.99801807]
[1770135766793,2.43932372,2264.9,2263.4,1.99801807]
[1770135767096,2.43932372,2264.9,2263.6,1.99801807]
[1770135767297,2.43932372,2264.9,2263.6,2.21910807]
[1770135767793,2.44338014,2264.9,2263.5,4.42]
[1770135767998,2.44338014,2264.9,2263.5,7.012]
[1770135768898,2.44338014,2264.9,2263.5,2.592]
[1770135769295,2.44338014,2264.9,2263.2,2.22323995]
[1770135769498,2.44338014,2264.9,2263.3,7.012]
[1770135769700,2.44338014,2264.9,2263.2,0.00409188]
[1770135769897,2.43932372,2264.7,2263.2,0.00409188]
[1770135770200,2.43932372,2264.5,2263.2,0.00409188]
[1770135773103,2.49324681,2264.3,2262.6,4.55191075]
[1770135773503,2.49324681,2264.3,2261.9,1.95764303]
[1770135773805,6.83229169,2264.8,2262.0,7.012]
[1770135773806,2.49324681,2263.8,2262.0,7.012]
[1770135774004,2.49324681,2263.6,2262.0,7.01576223]
[1770135774205,2.49324681,2263.4,2262.0,7.01576223]
[1770135774504,2.49324681,2263.4,2262.0,0.00376223]
[1770135774699,2.49324681,2263.2,2262.0,0.00376223]
[1770135774896,2.49324681,2263.0,2260.9,2.17899303]
[1770135775100,2.49324681,2263.0,2260.0,4.423]
[1770135775101,2.49324681,2262.8,2260.7,4.42]
[1770135775398,2.49324681,2261.9,2259.6,1.95764303]
[1770135775602,2.49324681,2261.9,2258.6,6.94999679]
[1770135775603,2.49324681,2261.1,2258.9,2.17960759]
[1770135775799,2.49324681,2260.9,2258.9,2.18275163]
[1770135776006,2.49324681,2260.7,2259.2,1.81172732]
[1770135776905,2.49324681,2260.7,2259.2,2.03324732]
[1770135777102,2.49324681,2260.7,2259.4,1.81172732]
[1770135777302,2.49324681,2261.0,2259.6,1.81172732]
[1770135777507,2.49324681,2261.0,2259.6,2.03320732]
[1770135777702,2.49324681,2261.0,2259.6,1.81172732]
[1770135777907,2.49324681,2261.0,2259.6,4.40472732]
[1770135778106,2.49324681,2261.0,2259.7,1.97050616]
[1770135778807,2.49324681,2261.0,2259.7,4.56350616]
[1770135779009,2.49324681,2261.0,2259.8,1.97050616]
[1770135779608,0.00387043,2261.1,2259.8,2.19196616]
[1770135780308,2.49711724,2261.1,2259.8,1.97050616]
[1770135780604,2.49711724,2261.1,2259.1,1.97973727]
[1770135780805,2.49711724,2261.1,2259.4,1.97973727]
[1770135781000,2.49711724,2261.1,2259.6,2.20121727]
[1770135781201,2.49711724,2261.1,2259.8,1.97973727]
[1770135781511,2.49711724,2261.1,2260.0,1.97973727]
[1770135781704,0.00387043,2261.1,2260.0,1.97973727]
[1770135781900,2.49711724,2261.1,2260.0,2.20117727]
[1770135782103,2.49711724,2261.1,2260.0,1.97973727]
[1770135782302,2.49711724,2261.1,2259.7,1.97643467]
[1770135782513,2.49711724,2261.1,2259.8,2.594]
[1770135782804,2.49711724,2261.1,2259.9,1.97643467]
[1770135783010,0.00387043,2261.1,2259.9,1.97643467]
[1770135783307,2.49711724,2261.1,2259.9,1.97643467]
[1770135783502,2.49711724,2261.1,2259.9,2.19788467]
[1770135783703,0.00387043,2261.1,2259.9,2.19788467]
[1770135783909,2.49711724,2261.1,2260.0,7.018]
[1770135785204,2.49711724,2261.1,2260.1,2.594]
[1770135786205,0.00387043,2261.1,2260.2,2.1537027]
[1770135786409,2.49324681,2261.7,2260.2,2.1537027]
[1770135787311,2.49687069,2261.7,2260.1,2.594]
[1770135787507,2.49687069,2261.7,2259.8,6.3562827]
[1770135787702,2.49687069,2261.7,2259.9,2.595]
[1770135788412,2.49687069,2261.7,2260.0,0.22144]
[1770135788611,2.49687069,2261.7,2259.7,1.92261044]
[1770135788805,2.49687069,2261.7,2259.8,8.94161044]
[1770135789311,0.22134,2261.1,2258.9,31.1991086]
[1770135789514,52.08521489,2261.0,2258.5,2.53839016]
[1770135789713,2.51417176,2260.8,2258.5,2.53839016]
[1770135790013,0.96813904,2260.6,2258.5,2.53839016]
[1770135790710,0.96813904,2260.6,2258.5,2.54359926]
[1770135791310,0.96813904,2260.9,2258.5,2.54359926]
[1770135791613,0.96813904,2260.9,2258.7,2.53839016]
[1770135792209,0.96813904,2260.9,2258.5,2.54359926]
[1770135792415,0.66136991,2260.7,2258.5,2.54359926]
[1770135792612,45.91343402,2261.0,2258.5,2.54359926]
[1770135792613,0.66136991,2260.5,2258.5,2.54359926]
[1770135794610,0.72558983,2261.2,2258.5,2.54359926]
[1770135794810,0.72558983,2261.6,2259.2,2.53839016]
[1770135795017,0.00362388,2261.7,2259.6,2.75986016]
[1770135795209,0.00362388,2261.7,2259.8,2.53839016]
[1770135795410,0.00362388,2261.7,2259.6,0.22147]
[1770135795411,0.00362388,2261.7,2260.0,2.53839016]
[1770135795615,0.72921371,2261.7,2260.0,2.53839016]
[1770135795811,0.72921371,2261.7,2260.1,2.53839016]
[1770135796018,0.72921371,2261.7,2260.1,2.54327657]
[1770135797114,0.84792772,2261.5,2260.1,0.00488641]
[1770135797314,0.84792772,2261.3,2260.1,0.00488641]
[1770135797911,0.84792772,2261.3,2260.1,2.54327657]
[1770135798115,0.94441193,2261.7,2260.1,2.54327657]
[1770135798317,0.94078805,2261.5,2260.1,2.54327657]
[1770135798816,0.94078805,2261.5,2257.3,4.423]
[1770135799120,1.9190343,2261.0,2258.2,0.22162]
[1770135799412,1.9190343,2260.7,2258.3,2.596]
[1770135799809,1.9190343,2260.7,2258.5,0.22159]
[1770135800414,8.98182451,2260.9,2258.3,7.02417968]
[1770135800614,4.426,2260.9,2258.6,2.22331404]
[1770135800817,4.426,2260.9,2258.8,2.39341616]
[1770135801222,4.426,2260.9,2259.1,2.39341616]
[1770135801611,2.52543128,2261.4,2259.4,2.39341616]
[1770135801813,3.82232772,2261.4,2259.6,2.61489616]
[1770135802119,4.48887967,2261.7,2259.8,2.39341616]
[1770135802314,1.96606198,2261.5,2258.5,6.58543732]
[1770135802514,1.96606198,2259.7,2258.3,2.39859584]
[1770135802714,1.96606198,2259.5,2258.3,0.00517968]
[1770135802910,3.82406519,2259.4,2258.3,2.39859584]
[1770135803110,2.53100116,2259.7,2258.3,2.39859584]
[1770135803317,1.96606198,2259.4,2257.7,2.596]
[1770135803518,1.97711519,2259.2,2257.6,2.596]
[1770135803720,1.97711519,2259.0,2257.6,2.596]
[1770135804022,3.98352784,2258.9,2257.6,2.596]
[1770135804220,1.97711519,2259.0,2257.6,2.596]
[1770135804420,3.98544573,2258.9,2257.6,2.596]
[1770135804621,3.98514063,2258.8,2257.6,2.596]
[1770135804921,1.97711519,2259.0,2257.6,2.596]
[1770135805420,4.53108816,2259.4,2257.7,2.39341616]
[1770135805620,3.9852821,2259.3,2257.7,2.61508616]
[1770135805918,3.9852821,2259.2,2257.7,2.61508616]
[1770135806119,3.9849671,2259.1,2257.7,2.61508616]
[1770135806318,2.35450863,2258.9,2257.7,2.39341616]
[1770135806624,2.35450863,2259.2,2257.7,2.39341616]
[1770135806820,3.98138341,2259.1,2257.7,2.61508616]
[1770135807118,4.87993991,2259.5,2257.7,2.61508616]
[1770135807324,3.98105876,2259.4,2257.7,2.61508616]
[1770135807524,3.98105876,2259.3,2257.7,2.61508616]
[1770135807722,2.35450863,2259.4,2257.7,2.61508616]
[1770135807919,2.3593646,2259.2,2257.7,2.61508616]
[1770135808125,6.34059078,2259.1,2257.7,2.61508616]
[1770135808326,2.3593646,2259.1,2257.7,2.61508616]
[1770135808819,4.88479588,2259.4,2257.7,2.61508616]
[1770135809018,3.97458727,2259.3,2257.7,2.61508616]
[1770135809222,2.3593646,2259.4,2257.7,2.61508616]
[1770135809818,4.92264851,2259.6,2257.7,2.61508616]
[1770135810022,2.39721723,2259.4,2257.7,2.61508616]
[1770135811322,2.39721723,2259.4,2257.8,0.22165]
[1770135811526,2.40278711,2259.7,2257.9,2.39341616]
[1770135811724,0.00556988,2259.7,2258.3,2.39341616]
[1770135812028,0.00556988,2259.7,2258.7,2.61498616]
[1770135812225,0.00556988,2259.7,2258.9,2.39341616]
[1770135812425,2.45844156,2260.1,2258.5,2.39341616]
[1770135812625,6.43277587,2260.0,2258.5,2.39341616]
[1770135812829,3.97433431,2259.9,2258.5,2.39341616]
[1770135813025,2.45844156,2259.7,2258.2,2.39341616]
[1770135813225,3.9740185,2259.6,2258.2,2.39341616]
[1770135813529,0.00529202,2259.6,2258.6,2.61499616]
[1770135813927,2.45844156,2260.2,2258.8,2.39341616]
[1770135814126,3.9752783,2260.1,2258.9,2.39341616]
[1770135814429,2.45844156,2260.2,2258.9,2.39341616]
[1770135814624,3.97766098,2260.1,2258.9,2.39341616]
[1770135814931,2.52543128,2260.5,2259.5,2.39341616]
[1770135815135,7.49570118,2261.3,2259.7,2.39341616]
[1770135815136,2.45844156,2261.0,2259.7,2.39341616]
[1770135815323,4.98387284,2261.3,2259.8,2.39341616]
[1770135815530,2.45844156,2260.5,2259.1,2.39341616]
[1770135815831,2.45844156,2260.0,2258.6,2.39341616]
[1770135816025,0.00356543,2260.0,2258.6,2.39707085]
[1770135816225,0.00356543,2260.0,2259.0,2.39341616]
[1770135818527,0.00356543,2260.0,2259.0,2.61495616]
[1770135818728,0.00356543,2260.0,2259.2,2.39341616]
[1770135819025,2.52543128,2260.5,2259.3,9.41841616]
[1770135819227,2.45844156,2260.4,2259.3,2.39341616]
[1770135819431,2.45844156,2260.3,2259.1,2.39341616]
[1770135819628,3.98535222,2260.2,2259.1,2.39341616]
[1770135819825,3.98988619,2260.2,2259.1,2.39341616]
[1770135820029,0.00453397,2260.2,2259.1,2.39341616]
[1770135820427,6.44447398,2260.1,2258.6,2.39707085]
[1770135820631,3.98603242,2260.0,2258.8,2.39341616]
[1770135820833,0.00453397,2260.2,2258.8,2.39341616]
[1770135821134,3.98690838,2260.1,2258.8,2.39341616]
[1770135821334,3.98690838,2260.0,2258.8,2.39341616]
[1770135821532,0.00453397,2260.2,2258.8,2.39341616]
[1770135822033,3.9889063,2260.1,2258.8,2.39341616]
[1770135822536,3.9889063,2260.1,2259.0,2.39341616]
[1770135823032,3.9889063,2260.1,2259.1,2.597]
[1770135823227,3.9889063,2260.1,2259.1,4.99041616]
[1770135823425,3.9889063,2260.1,2259.2,2.39341616]
[1770135823827,0.00453397,2260.2,2259.3,0.22151]
[1770135824032,0.00453397,2260.2,2259.4,2.61491616]
[1770135824426,2.52543128,2260.8,2259.6,2.39341616]
[1770135824628,2.52543128,2261.0,2259.8,2.39341616]
[1770135824826,2.45641835,2261.2,2260.0,2.39341616]
[1770135825034,4.98184963,2261.2,2260.0,2.39341616]
[1770135825234,3.9951176,2261.1,2260.0,2.39341616]
[1770135825430,0.00450031,2261.1,2260.0,2.39341616]
[1770135825736,0.00450031,2261.1,2260.2,2.39341616]
[1770135825933,0.00450031,2261.1,2260.2,2.39823578]
[1770135826136,2.45181939,2261.1,2260.2,0.00481962]
[1770135826337,2.52543128,2260.8,2259.8,2.39341616]
[1770135826531,2.44731908,2260.7,2259.6,2.39341616]
[1770135826736,3.9953904,2260.6,2259.6,2.39341616]
[1770135826932,2.52543128,2260.8,2259.6,2.39341616]
[1770135827131,4.97275036,2260.8,2259.6,2.39341616]
[1770135827332,3.99563992,2260.7,2259.6,2.39341616]
[1770135827635,2.52543128,2260.9,2259.6,2.39678783]
[1770135828036,6.5210712,2260.9,2259.6,2.39678783]
[1770135828238,3.99563992,2260.8,2259.6,2.39678783]
[1770135828538,3.99563992,2260.7,2259.6,2.39678783]
[1770135828832,3.99397907,2260.6,2259.6,2.39678783]
[1770135829027,3.99339348,2260.5,2259.6,2.39678783]
[1770135829228,2.52543128,2261.0,2259.6,2.39678783]
[1770135829431,3.99346727,2260.9,2259.6,2.39678783]
[1770135829633,2.52993159,2261.1,2259.6,2.39678783]
[1770135830133,2.44511854,2260.9,2259.6,2.39678783]
[1770135830330,6.51901131,2260.8,2259.7,2.48562949]
[1770135830530,3.99358003,2260.7,2259.7,2.48562949]
[1770135830729,4.97054982,2260.9,2259.7,2.48562949]
[1770135830934,2.35890325,2260.7,2259.7,2.48562949]
[1770135831138,3.99264648,2260.6,2259.7,2.48562949]
[1770135831336,2.52543128,2260.8,2259.7,2.48562949]
[1770135831638,2.52993159,2261.1,2259.7,2.48562949]
[1770135832035,4.88883484,2261.1,2259.7,2.48562949]
[1770135832237,3.9926214,2261.0,2259.8,0.22146]
[1770135832440,2.35890325,2260.8,2259.6,2.48900116]
[1770135832643,3.9926214,2260.7,2259.6,5.08500116]
[1770135832840,2.35890325,2260.8,2259.6,5.08500116]
[1770135833036,3.95525547,2260.7,2259.7,2.48562949]
[1770135833241,2.35890325,2260.8,2259.7,2.48562949]
[1770135833542,3.95554977,2260.7,2259.7,2.48562949]
[1770135833737,2.52543128,2261.0,2259.7,2.48562949]
[1770135833937,8.89736205,2261.0,2259.7,2.48562949]
[1770135834137,6.47912377,2260.9,2259.7,2.48562949]
[1770135834432,5.11302156,2261.1,2260.0,2.46781022]
[1770135834433,2.52993159,2261.1,2260.0,2.46781022]
[1770135835136,2.52993159,2261.1,2260.2,2.46781022]
[1770135835137,0.00450031,2261.1,2260.2,2.46781022]
[1770135835533,0.00450031,2261.1,2259.6,2.82085167]
[1770135835733,3.95456643,2261.0,2259.7,2.46781022]
[1770135835934,2.42273859,2261.1,2259.7,2.46781022]
[1770135836239,3.95449873,2261.0,2259.7,2.46781022]
[1770135836439,2.41823828,2261.0,2259.7,2.46781022]
[1770135837733,2.41823828,2261.0,2259.7,2.68928022]
[1770135838244,0.00450031,2261.1,2259.9,2.46781022]
[1770135838442,3.95804176,2261.0,2259.9,2.68926022]
[1770135838741,0.00450031,2261.1,2260.0,5.06381022]
[1770135838941,3.95742383,2261.0,2260.1,2.46781022]
[1770135839140,2.52993159,2261.1,2260.1,2.46781022]
[1770135839642,2.41823828,2261.0,2259.7,2.46781022]
[1770135839840,3.95956237,2260.9,2259.8,5.06381022]
[1770135840042,2.52993159,2261.1,2259.9,2.46781022]
[1770135840240,2.52993159,2261.1,2259.9,2.68926022]
[1770135840440,2.52993159,2261.1,2260.1,2.46781022]
[1770135840638,2.52993159,2261.1,2260.1,2.68924022]
[1770135840842,2.52543128,2261.8,2260.8,2.46781022]
[1770135841044,3.96054423,2261.7,2260.8,2.46781022]
[1770135841244,2.52543128,2261.9,2260.8,2.46781022]
[1770135841543,2.41823828,2261.7,2260.5,2.46781022]
[1770135841844,2.52543128,2261.5,2260.5,2.46781022]
[1770135842443,3.93261421,2261.4,2260.5,2.46781022]
[1770135842642,2.52543128,2261.6,2260.2,2.46781022]
[1770135842643,6.35085249,2261.3,2260.2,2.46781022]
[1770135842839,2.41823828,2261.1,2260.1,2.596]
[1770135843042,8.88194202,2261.1,2260.1,2.596]
[1770135843338,8.88194202,2261.0,2259.9,6.89481022]
[1770135843540,4.94366956,2260.8,2258.5,14.37176086]
[1770135843745,1.72775877,2259.4,2258.5,2.46781022]
[1770135844039,2.55251126,2259.7,2258.5,2.46781022]
[1770135844243,2.55251126,2260.2,2258.7,2.46781022]
[1770135844443,2.55251126,2260.4,2258.7,2.46781022]
[1770135844745,4.74040148,2260.4,2258.7,2.47242552]
[1770135844946,6.45307052,2260.3,2258.7,2.47242552]
[1770135845142,2.18284717,2260.2,2258.7,2.47242552]
[1770135845343,6.45307052,2260.1,2258.7,2.47242552]
[1770135845640,0.00504305,2260.4,2259.0,2.68935022]
[1770135845946,0.00504305,2260.4,2259.2,2.46781022]
[1770135847546,4.54305348,2260.4,2259.2,2.46781022]
[1770135847743,1.98549917,2260.1,2259.1,4.427]
[1770135848040,2.55251126,2260.2,2259.2,2.46781022]
[1770135848247,4.43912299,2260.0,2258.7,0.0046153]
[1770135848442,4.43912299,2259.8,2258.7,0.0046153]
[1770135848638,38.28766895,2259.9,2257.5,7.80707168]
[1770135848639,4.43450769,2258.9,2257.5,2.46781022]
[1770135848845,2.55251126,2258.7,2257.5,2.46781022]
[1770135849439,3.90568223,2258.6,2257.5,2.46781022]
[1770135849647,3.90568223,2258.5,2257.5,2.46781022]
[1770135849840,0.00420052,2258.5,2257.5,2.47147798]
[1770135850541,1.84747745,2258.5,2257.5,0.00366776]
[1770135851544,0.00420052,2258.5,2257.5,2.47147798]
[1770135852441,1.8194932,2258.5,2257.5,0.00366776]
[1770135852947,0.00420052,2258.5,2257.5,2.47147798]
[1770135853939,1.81529268,2259.2,2257.5,2.47147798]
[1770135854249,1.90698623,2259.8,2257.9,2.46781022]
[1770135854545,2.55251126,2260.1,2258.1,2.46781022]
[1770135854752,13.90681509,2260.9,2259.0,2.46781022]
[1770135854947,1.90698623,2260.7,2258.3,2.46781022]
[1770135855147,1.90698623,2260.4,2258.5,2.46781022]
[1770135855347,3.88427868,2260.3,2258.5,2.46781022]
[1770135855548,1.90698623,2260.4,2258.5,2.46781022]
[1770135856047,2.55251126,2260.5,2258.5,2.46781022]
[1770135856048,2.21185364,2260.2,2258.5,2.46781022]
[1770135856353,2.21185364,2260.8,2258.9,2.46781022]
[1770135856547,12.00403061,2260.9,2258.9,2.46781022]
[1770135856548,6.0924332,2260.7,2258.9,2.46781022]
[1770135856748,2.21185364,2260.7,2258.9,2.46781022]
[1770135857044,2.21185364,2260.5,2258.9,2.46781022]
[1770135857445,2.21185364,2260.3,2258.5,2.46781022]
[1770135858046,2.18757482,2260.1,2258.5,2.46781022]
[1770135860052,6.95499871,2260.4,2258.5,2.46781022]
[1770135860351,2.25688716,2260.3,2258.5,2.46781022]
[1770135861152,2.25688716,2260.3,2258.7,2.40062645]
[1770135861547,4.80939842,2260.7,2258.9,2.40062645]
[1770135861854,0.00420175,2260.9,2259.3,2.62213645]
[1770135862050,0.00420175,2260.9,2259.5,2.40062645]
[1770135862251,2.26510988,2260.9,2259.5,2.40062645]
[1770135862654,3.92050364,2260.8,2259.5,2.40062645]
[1770135862848,2.26090813,2260.7,2259.5,2.40062645]
[1770135864349,3.92085145,2260.6,2259.3,0.00443762]
[1770135864553,40.84018021,2259.9,2257.9,2.55258478]
[1770135864754,13.05236271,2259.8,2257.9,2.55258478]
[1770135864950,2.55251126,2260.0,2258.1,2.77421478]
[1770135865152,2.55251126,2260.3,2258.5,2.55258478]
[1770135865351,3.92186665,2260.2,2258.5,2.55258478]
[1770135865551,3.92186665,2260.1,2258.5,2.55588371]
[1770135866755,3.94975409,2260.1,2258.5,2.55588371]
[1770135866956,2.55251126,2260.3,2258.5,2.55588371]
[1770135867156,3.92583633,2260.2,2258.5,2.55588371]
[1770135867458,3.92583633,2260.1,2258.5,2.55588371]
[1770135867757,2.55251126,2260.3,2258.5,2.55588371]
[1770135868054,3.92693791,2260.2,2258.5,2.55588371]
[1770135868252,2.55251126,2260.3,2258.5,2.55588371]
[1770135868558,3.99502198,2260.2,2258.5,2.55588371]
[1770135868854,3.92793052,2260.1,2258.5,2.55588371]
[1770135869055,2.61960272,2260.3,2258.5,2.55588371]
[1770135869358,2.55251126,2260.2,2258.5,2.55588371]
[1770135869556,3.92885797,2260.1,2258.5,2.55588371]
[1770135869757,2.61960272,2260.2,2258.5,2.55588371]
[1770135869952,3.93177863,2260.1,2258.5,2.55588371]
[1770135870255,2.61960272,2260.2,2258.5,2.55588371]
[1770135870450,3.93252884,2260.1,2258.5,2.55588371]
[1770135870653,2.61960272,2260.2,2258.5,2.55588371]
[1770135870856,3.93116799,2260.1,2258.5,2.55588371]
[1770135871057,2.61960272,2260.2,2258.5,2.55588371]
[1770135871356,0.10635347,2260.0,2258.5,2.55588371]
[1770135871748,2.55251126,2260.2,2258.6,0.22158]
[1770135871952,2.55251126,2260.3,2258.9,2.49817663]
[1770135872157,3.93472011,2260.2,2259.0,2.49817663]
[1770135872454,3.93751131,2260.1,2259.0,2.49817663]
[1770135872656,2.55251126,2260.3,2259.1,2.49817663]
[1770135873561,3.93379093,2260.2,2259.1,2.49817663]
[1770135873858,0.10881629,2260.2,2259.1,2.49817663]
[1770135874054,3.93327453,2260.1,2259.1,2.49817663]
[1770135874255,2.55251126,2260.3,2259.1,2.49817663]
[1770135874460,3.93387264,2260.2,2259.1,2.49817663]
[1770135874661,2.55251126,2260.3,2259.1,2.49817663]
[1770135874662,3.93387264,2260.1,2259.1,2.49817663]
[1770135874861,0.05744085,2260.2,2259.1,2.49817663]
[1770135875157,2.60995211,2260.2,2259.1,2.49817663]
[1770135875360,2.55251126,2260.5,2259.1,2.49817663]
[1770135875558,2.55251126,2260.7,2259.3,2.52386435]
[1770135875761,0.05744085,2260.5,2259.3,2.52386435]
[1770135875960,2.55251126,2260.4,2259.3,2.52386435]
[1770135876260,6.48559418,2260.3,2259.3,2.52386435]
[1770135876556,3.93308292,2260.2,2259.3,2.52386435]
[1770135876760,2.55251126,2260.5,2259.3,2.52386435]
[1770135876959,3.93512454,2260.4,2259.3,2.52386435]
[1770135877154,3.93512454,2260.4,2258.5,0.00329893]
[1770135877155,2.60831833,2260.2,2258.5,2.74957017]
[1770135877359,3.93512454,2260.1,2258.5,2.74957017]
[1770135877559,3.93512454,2260.0,2258.5,2.74957017]
[1770135877760,2.60831833,2260.2,2258.5,2.74957017]
[1770135877958,3.93515702,2260.1,2258.5,2.74957017]
[1770135878159,3.93515702,2260.0,2258.5,2.74957017]
[1770135878459,2.55251126,2260.2,2258.5,2.74957017]
[1770135878660,3.93731587,2260.1,2258.5,2.74957017]
[1770135878963,2.55251126,2260.2,2258.9,2.50595334]
[1770135878964,3.93731587,2260.0,2258.9,2.50595334]
[1770135879156,2.64577413,2260.2,2258.9,2.50595334]
[1770135879356,2.64577413,2260.2,2259.1,2.50595334]
[1770135879357,3.93722544,2260.1,2259.1,2.50595334]
[1770135879557,3.93722544,2260.0,2259.1,2.50595334]
[1770135879855,0.12346703,2259.8,2258.8,5.08785126]
[1770135880062,2.67597829,2259.8,2258.8,2.597]
[1770135880253,3.938487,2259.7,2258.8,2.597]
[1770135880560,3.938487,2259.7,2258.9,2.49085126]
[1770135880762,3.938487,2259.6,2258.9,2.49085126]
[1770135881060,2.55251126,2259.8,2258.9,2.49085126]
[1770135881257,2.55251126,2259.7,2258.9,2.49085126]
[1770135881463,2.55251126,2260.3,2259.1,2.49085126]
[1770135881664,3.94532161,2260.2,2259.3,2.49085126]
[1770135881859,2.55251126,2260.4,2259.3,2.49085126]
[1770135882356,2.55251126,2260.3,2258.8,2.597]
[1770135882566,2.55251126,2260.0,2258.9,2.49582452]
[1770135883059,6.46966554,2260.0,2258.9,2.49582452]
[1770135883262,6.46966554,2259.9,2258.9,2.49582452]
[1770135883461,3.91715428,2259.8,2258.9,2.49582452]
[1770135883762,3.91715428,2259.7,2258.9,2.49582452]
[1770135884065,2.65443554,2259.9,2258.9,2.49582452]
[1770135884362,6.48512107,2259.8,2258.9,2.49582452]
[1770135884564,6.58704535,2259.7,2258.5,2.50492156]
[1770135884755,2.55251126,2259.4,2258.5,2.50492156]
[1770135884959,3.93260981,2259.3,2258.5,2.50492156]
[1770135885160,0.00309692,2259.3,2258.5,2.50492156]
[1770135886160,0.00309692,2259.3,2258.7,2.50216155]
[1770135886361,2.55251126,2259.7,2258.8,2.50061309]
[1770135886561,2.55251126,2260.0,2258.8,2.50061309]
[1770135886757,2.55251126,2259.5,2258.7,2.50061309]
[1770135886961,38.28766895,2259.6,2258.7,2.50061309]
[1770135886962,3.93562138,2259.4,2258.7,2.50061309]
[1770135887162,2.55251126,2259.7,2258.7,2.50061309]
[1770135887360,3.93493385,2259.6,2258.7,2.50061309]
[1770135887661,3.93481808,2259.5,2258.7,2.50061309]
[1770135887859,2.55824859,2259.7,2258.7,2.50061309]
[1770135888055,6.49319905,2259.7,2258.7,2.50061309]
[1770135888457,2.55251126,2259.6,2258.7,2.50061309]
[1770135889261,6.48746172,2259.6,2258.7,2.50061309]
[1770135889662,3.93495046,2259.5,2258.7,2.50061309]
[1770135889861,0.00573733,2259.7,2258.7,2.50061309]
[1770135890066,2.55251126,2260.2,2259.1,2.55258478]
[1770135890260,2.55251126,2260.2,2259.3,2.40062645]
[1770135890563,5.07859473,2260.2,2259.3,2.40062645]
[1770135890963,2.52976098,2260.2,2259.3,2.40062645]
[1770135891164,5.08227224,2260.2,2259.3,2.40062645]
[1770135891364,2.55618877,2260.2,2259.3,2.40062645]
[1770135891659,0.00367751,2260.2,2259.3,2.40062645]
[1770135893062,2.55251126,2260.7,2259.3,2.62213645]
[1770135893364,2.55251126,2260.7,2259.5,2.36327762]
[1770135893761,4.98553761,2260.6,2259.5,2.36327762]
[1770135893959,2.43302635,2260.5,2259.5,2.36327762]
[1770135894666,2.43302635,2260.2,2259.0,2.33591419]
[1770135894967,2.55251126,2260.3,2259.2,2.33591419]
[1770135895557,2.55251126,2260.3,2259.1,2.597]
[1770135895861,5.1104754,2260.6,2257.4,0.2217]
[1770135895862,38.28766895,2259.2,2257.4,0.2217]
[1770135896060,2.56661914,2258.9,2257.4,0.2217]
[1770135896256,38.28766895,2259.1,2257.8,0.22166]
[1770135896257,2.56661914,2259.1,2257.8,0.22166]
[1770135896462,2.56661914,2259.6,2258.0,0.22164]
[1770135896763,5.00328022,2259.6,2258.1,0.22163]
[1770135896958,2.43666108,2259.6,2258.2,6.76151419]
[1770135897166,2.43302635,2259.5,2258.1,0.22403]
[1770135897665,2.43302635,2259.5,2258.1,6.98554419]
[1770135897865,2.43302635,2259.5,2258.2,2.33591419]
[1770135898062,2.57025387,2259.6,2258.2,2.33591419]
[1770135898263,4.99964549,2259.5,2258.3,0.0024]
[1770135898467,4.99964549,2259.4,2258.3,2.33591419]
[1770135898664,4.99964549,2259.5,2258.4,2.33591419]
[1770135898867,2.43302635,2259.5,2258.4,2.33591419]
[1770135899064,9.19325387,2259.6,2258.4,9.09742838]
[1770135899260,2.43302635,2259.5,2258.1,7.025]
[1770135899568,2.43302635,2259.5,2258.2,9.09742838]
[1770135899763,2.43302635,2259.5,2258.3,2.33591419]
[1770135900066,0.22161,2258.4,2256.9,5.29919134]
[1770135900273,4.99964549,2257.9,2256.5,2.33591419]
[1770135900469,2.56661914,2258.1,2256.7,2.33591419]
[1770135900762,2.56661914,2258.1,2256.6,2.597]
[1770135900763,2.43302635,2258.2,2256.6,4.93291419]
[1770135900963,2.43302635,2258.2,2256.7,2.33591419]
[1770135901164,2.43641243,2258.2,2256.8,2.33591419]
[1770135901473,2.43641243,2258.2,2256.9,2.33591419]
[1770135901966,3.88346565,2258.1,2256.9,2.33591419]
[1770135902163,2.43641243,2258.2,2256.9,2.33591419]
[1770135902463,2.43641243,2258.2,2257.2,2.33591419]
[1770135902864,0.00338608,2258.2,2257.6,6.76151419]
[1770135903565,0.00338608,2258.2,2257.8,6.76151419]
[1770135903864,0.00080522,2258.2,2257.5,2.33591419]
[1770135904060,2.43302635,2258.1,2256.7,0.00554154]
[1770135904467,0.00080522,2258.2,2257.0,6.76151419]
[1770135904671,2.43302635,2259.0,2257.0,31.008]
[1770135904865,2.43302635,2259.5,2257.0,31.008]
[1770135905170,2.43302635,2259.5,2257.9,0.22165]
[1770135905370,2.43302635,2260.3,2258.3,0.2216]